fUSD/lending_fUSD_20250417
["ID","MTS","AMOUNT","RATE_DAILY","PERIOD"]
[358241498,1744867849279,-725.15,0.00052264,120]
[358241499,1744867849289,-500.0,0.00052264,120]
[358241500,1744867849299,-500.0,0.00052264,120]
[358241501,1744867849309,-500.0,0.00052264,120]
[358241502,1744867849319,-500.0,0.00052264,120]
[358241503,1744867849329,-590.31317524,0.00052264,120]
[358241504,1744867849340,-500.0,0.00052264,120]
[358241505,1744867849350,-506.81,0.00052264,120]
[358241506,1744867849360,-500.0,0.00052264,120]
[358241507,1744867849370,-500.0,0.00052264,120]
[358241508,1744867849380,-500.0,0.00052264,120]
[358241509,1744867849390,-151.0,0.00052264,120]
[358241510,1744867849400,-358.3862019,0.00052264,120]
[358241511,1744867849409,-500.0,0.00052264,120]
[358241512,1744867849419,-500.0,0.00052264,60]
[358241513,1744867849429,-500.0,0.00052264,120]
[358241514,1744867849440,-655.46,0.00052264,120]
[358241515,1744867849450,-500.0,0.00052264,120]
[358241516,1744867849461,-526.804113,0.00052264,120]
[358241517,1744867849472,-151.0,0.00052264,120]
[358241518,1744867849482,-526.804113,0.00052264,120]
[358241519,1744867849492,-931.67,0.00052264,120]
[358241520,1744867849502,-500.0,0.00052264,120]
[358241521,1744867849512,-500.0,0.00052264,120]
[358241522,1744867849522,-500.0,0.00052264,120]
[358241523,1744867849532,-151.0,0.00052264,120]
[358241524,1744867849545,-500.0,0.00052264,120]
[358241525,1744867849555,-572.46,0.00052264,120]
[358241526,1744867849565,-676.4,0.00052264,120]
[358241527,1744867849575,-500.0,0.00052264,120]
[358241528,1744867849586,-814.17,0.00052264,120]
[358241529,1744867849596,-151.0,0.00052264,120]
[358241530,1744867849605,-500.0,0.00052264,120]
[358241531,1744867849615,-513.07080944,0.00052264,120]
[358241532,1744867849626,-590.16,0.00052264,120]
[358241533,1744867849636,-500.0,0.00052264,120]
[358241534,1744867849645,-151.0,0.00052264,120]
[358241535,1744867849655,-151.0,0.00052264,120]
[358241536,1744867849664,-500.0,0.00052264,120]
[358241537,1744867849674,-500.0,0.00052264,120]
[358241538,1744867849683,-159.782294,0.00052264,120]
[358241539,1744867849692,-500.0,0.00052264,120]
[358241540,1744867849702,-500.0,0.00052264,120]
[358241541,1744867849711,-500.0,0.00052264,120]
[358241542,1744867849720,-500.0,0.00052264,120]
[358241543,1744867849730,-151.0,0.00052264,120]
[358241544,1744867849739,-151.0,0.00052264,120]
[358241545,1744867849749,-500.0,0.00052264,120]
[358241546,1744867849759,-758.29,0.00052264,120]
[358241547,1744867849768,-151.0,0.00052264,120]
[358241548,1744867849778,-500.0,0.00052264,120]
[358241549,1744867849788,-155.998832,0.00052264,120]
[358241550,1744867849797,-500.0,0.00052264,120]
[358241551,1744867849807,-197.67196814,0.00052264,120]
[358241552,1744867849817,-500.0,0.00052264,120]
[358241553,1744867849829,-500.0,0.00052264,120]
[358241554,1744867849839,-151.0,0.00052264,120]
[358241555,1744867849851,-151.0,0.00052264,120]
[358241556,1744867849861,-500.0,0.00052264,120]
[358241557,1744867849872,-500.0,0.00052264,120]
[358241558,1744867849883,-193.471755,0.00052264,120]
[358241559,1744867849894,-151.0,0.00052264,120]
[358241560,1744867849906,-151.0,0.00052264,120]
[358241561,1744867849917,-193.471755,0.00052264,120]
[358241562,1744867849927,-151.0,0.00052264,120]
[358241563,1744867849937,-500.0,0.00052264,120]
[358241564,1744867849947,-164.582931,0.00052264,120]
[358241565,1744867849958,-516.42659789,0.00052264,120]
[358241566,1744867849971,-500.0,0.00052264,120]
[358241567,1744867849981,-776.39,0.00052264,120]
[358241568,1744867849990,-500.0,0.00052264,120]
[358241569,1744867850000,-500.0,0.00052264,120]
[358241570,1744867850010,-496.33427459,0.00052264,120]
[358241571,1744867850020,-500.0,0.00052264,120]
[358241572,1744867850030,-236.388087,0.00052264,120]
[358241573,1744867850039,-500.0,0.00052264,120]
[358241574,1744867850049,-151.0,0.00052264,120]
[358241575,1744867850059,-236.388087,0.00052264,120]
[358241576,1744867850068,-151.0,0.00052264,120]
[358241577,1744867850077,-500.0,0.00052264,120]
[358241578,1744867850087,-500.0,0.00052264,120]
[358241579,1744867850097,-151.0,0.00052264,120]
[358241580,1744867850107,-151.0,0.00052264,120]
[358241581,1744867850117,-500.0,0.00052264,120]
[358241582,1744867850126,-500.0,0.00052264,120]
[358241583,1744867850136,-500.0,0.00052264,120]
[358241584,1744867850146,-505.28,0.00052264,120]
[358241585,1744867850157,-500.0,0.00052264,120]
[358241586,1744867850166,-500.0,0.00052264,120]
[358241587,1744867850176,-552.44,0.00052264,120]
[358241588,1744867850186,-500.0,0.00052264,120]
[358241589,1744867850195,-827.11,0.00052264,120]
[358241590,1744867850205,-500.0,0.00052264,120]
[358241591,1744867850215,-500.0,0.00052264,120]
[358241592,1744867850225,-2664.66,0.00052264,120]
[358241593,1744867850235,-500.0,0.00052264,120]
[358241594,1744867850244,-500.0,0.00052264,120]
[358241595,1744867850254,-1693.25,0.00052264,120]
[358241596,1744867850263,-516.61,0.00052264,120]
[358241597,1744867850273,-151.0,0.00052264,120]
[358241598,1744867850283,-151.0,0.00052264,120]
[358241599,1744867850292,-151.0,0.00052264,120]
[358241600,1744867850302,-500.0,0.00052264,120]
[358241601,1744867850311,-2506.3,0.00052264,120]
[358241602,1744867850321,-500.0,0.00052264,120]
[358241603,1744867850331,-706.58,0.00052264,120]
[358241604,1744867850340,-500.0,0.00052264,120]
[358241605,1744867850349,-503.00332705,0.00052264,120]
[358241606,1744867850359,-500.0,0.00052264,120]
[358241607,1744867850369,-500.0,0.00052264,120]
[358241608,1744867850379,-684.23,0.00052264,120]
[358241609,1744867850389,-500.0,0.00052264,120]
[358241610,1744867850398,-500.0,0.00052264,120]
[358241611,1744867850408,-151.0,0.00052264,120]
[358241612,1744867850418,-151.0,0.00052264,120]
[358241613,1744867850429,-1027.03,0.00052264,120]
[358241614,1744867850438,-151.0,0.00052264,120]
[358241615,1744867850447,-151.0,0.00052264,120]
[358241616,1744867850458,-245.362953,0.00052264,120]
[358241617,1744867850468,-604.95,0.00052264,120]
[358241618,1744867850478,-3158.29,0.00052264,120]
[358241619,1744867850489,-500.0,0.00052264,120]
[358241620,1744867850499,-500.0,0.00052264,120]
[358241621,1744867850509,-500.0,0.00052264,120]
[358241622,1744867850518,-1781.85,0.00052264,120]
[358241623,1744867850529,-181.395052,0.00052264,120]
[358241624,1744867850539,-500.0,0.00052264,120]
[358241625,1744867850553,-181.395052,0.00052264,120]
[358241626,1744867850562,-500.0,0.00052264,120]
[358241627,1744867850571,-181.395052,0.00052264,120]
[358241628,1744867850582,-181.395052,0.00052264,120]
[358241629,1744867850592,-500.0,0.00052264,120]
[358241630,1744867850601,-500.0,0.00052264,120]
[358241631,1744867850610,-500.0,0.00052264,120]
[358241632,1744867850619,-500.0,0.00052264,120]
[358241633,1744867850629,-500.0,0.00052264,120]
[358241634,1744867850639,-505.79520578,0.00052264,120]
[358241635,1744867850648,-580.1,0.00052264,120]
[358241636,1744867850657,-151.0,0.00052264,120]
[358241637,1744867850667,-500.0,0.00052264,120]
[358241638,1744867850676,-500.0,0.00052264,120]
[358241639,1744867850685,-500.0,0.00052264,120]
[358241640,1744867850694,-341.100679,0.00052264,120]
[358241641,1744867850706,-341.100679,0.00052264,120]
[358241642,1744867850716,-500.0,0.00052264,120]
[358241643,1744867850726,-500.0,0.00052264,120]
[358241644,1744867850735,-3687.42,0.00052264,120]
[358241645,1744867850744,-341.100679,0.00052264,120]
[358241646,1744867850753,-341.100679,0.00052264,120]
[358241647,1744867850763,-500.0,0.00052264,120]
[358241648,1744867850772,-500.0,0.00052264,120]
[358241649,1744867850781,-500.0,0.00052264,120]
[358241650,1744867850790,-3050.07,0.00052264,120]
[358241651,1744867850799,-500.0,0.00052264,120]
[358241652,1744867850808,-566.914999,0.00052264,120]
[358241653,1744867850817,-365.619952,0.00052264,120]
[358241654,1744867850826,-365.619952,0.00052264,120]
[358241655,1744867850835,-151.0,0.00052264,120]
[358241656,1744867850845,-566.914999,0.00052264,120]
[358241657,1744867850854,-500.0,0.00052264,120]
[358241658,1744867850863,-151.0,0.00052264,120]
[358241659,1744867850872,-151.0,0.00052264,120]
[358241660,1744867850881,-365.619952,0.00052264,120]
[358241661,1744867850891,-365.619952,0.00052264,120]
[358241662,1744867850900,-500.0,0.00052264,120]
[358241663,1744867850909,-152.301334,0.00052264,120]
[358241664,1744867850918,-500.0,0.00052264,120]
[358241665,1744867850926,-500.0,0.00052264,120]
[358241666,1744867850935,-151.0,0.00052264,120]
[358241667,1744867850945,-151.0,0.00052264,120]
[358241668,1744867850954,-508.29445465,0.00052264,120]
[358241669,1744867850965,-500.0,0.00052264,120]
[358241670,1744867850974,-500.0,0.00052264,120]
[358241671,1744867850984,-569.15,0.00052264,120]
[358241672,1744867850994,-500.0,0.00052264,120]
[358241673,1744867851003,-500.0,0.00052264,120]
[358241674,1744867851013,-1000.0,0.00052264,120]
[358241675,1744867851022,-500.0,0.00052264,120]
[358241676,1744867851032,-151.0,0.00052264,120]
[358241677,1744867851042,-6687.86,0.00052264,120]
[358241678,1744867851052,-500.0,0.00052264,120]
[358241679,1744867851061,-151.0,0.00052264,120]
[358241680,1744867851071,-151.0,0.00052264,120]
[358241681,1744867851080,-500.0,0.00052264,120]
[358241682,1744867851089,-291.202478,0.00052264,120]
[358241683,1744867851098,-346.13825906,0.00052264,120]
[358241684,1744867851108,-500.0,0.00052264,120]
[358241685,1744867851118,-500.0,0.00052264,120]
[358241686,1744867851128,-2506.69,0.00052264,120]
[358241687,1744867851138,-500.0,0.00052264,120]
[358241688,1744867851147,-500.0,0.00052264,120]
[358241689,1744867851156,-1135.58,0.00052264,120]
[358241690,1744867851166,-151.0,0.00052264,120]
[358241691,1744867851176,-706.15,0.00052264,120]
[358241692,1744867851185,-500.0,0.00052264,120]
[358241693,1744867851195,-500.0,0.00052264,120]
[358241694,1744867851204,-500.0,0.00052264,120]
[358241695,1744867851213,-551.85693911,0.00052264,120]
[358241696,1744867851223,-151.0,0.00052264,120]
[358241697,1744867851233,-500.0,0.00052264,120]
[358241698,1744867851242,-500.0,0.00052264,120]
[358241699,1744867851251,-500.0,0.00052264,120]
[358241700,1744867851261,-417.579424,0.00052264,120]
[358241701,1744867851270,-151.0,0.00052264,120]
[358241702,1744867851279,-150.0,0.00052268,7]
[358241703,1744867851289,-500.0,0.00052273,120]
[358241704,1744867851298,-538.44,0.00052274,120]
[358241705,1744867851309,-500.0,0.00052274,120]
[358241706,1744867851318,-150.0,0.00052274,7]
[358241707,1744867851328,-150.0,0.00052274,7]
[358241708,1744867851337,-500.0,0.00052274,120]
[358241709,1744867851346,-544.39,0.00052274,120]
[358241710,1744867851355,-500.0,0.00052274,120]
[358241711,1744867851364,-541.81,0.00052274,120]
[358241712,1744867851375,-907.26,0.00052274,120]
[358241713,1744867851385,-151.0,0.00052285,120]
[358241714,1744867851394,-151.0,0.00052285,120]
[358241715,1744867851404,-151.0,0.00052285,120]
[358241716,1744867851413,-151.0,0.00052285,120]
[358241717,1744867851422,-129730.430076,0.00052286,4]
[358241718,1744867851431,-28276.7785451,0.00052286,4]
[358241719,1744867851440,-212.68623052,0.00052286,7]
[358241720,1744867851449,-151.0,0.00052286,120]
[358241721,1744867851459,-2019.76989608,0.00052286,4]
[358241722,1744867851468,-16216.3037595,0.00052286,4]
[358241723,1744867851477,-2019.76989608,0.00052286,4]
[358241724,1744867851487,-2019.76989608,0.00052287,4]
[358241725,1744867851496,-207.4,0.00052287,2]
[358241726,1744867851505,-230.65972783,0.00052287,2]
[358241727,1744867851520,-16216.3037595,0.00052291,4]
[358241728,1744867851535,-18177.9290647,0.00052291,4]
[358241729,1744867851546,-151.0,0.00052296,120]
[358241730,1744867851555,-151.0,0.00052296,120]
[358241731,1744867851565,-151.0,0.00052296,120]
[358241732,1744867851574,-151.0,0.00052296,120]
[358241733,1744867851584,-151.0,0.00052296,120]
[358241734,1744867851594,-244.323508,0.00052296,120]
[358241735,1744867851603,-236.388087,0.00052296,120]
[358241736,1744867851613,-236.388087,0.00052296,120]
[358241737,1744867851625,-151.0,0.00052296,120]
[358241738,1744867851635,-151.0,0.00052296,120]
[358241739,1744867851645,-236.388087,0.00052296,120]
[358241740,1744867851655,-236.388087,0.00052296,120]
[358241741,1744867851665,-151.0,0.00052296,120]
[358241742,1744867851675,-151.0,0.00052296,120]
[358241743,1744867851684,-151.0,0.00052296,120]
[358241744,1744867851694,-151.0,0.00052296,120]
[358241745,1744867851705,-151.0,0.00052296,120]
[358241746,1744867851715,-158.508399,0.00052296,120]
[358241747,1744867851725,-151.0,0.00052296,120]
[358241748,1744867851735,-151.0,0.00052296,120]
[358241749,1744867851745,-181.395052,0.00052296,120]
[358241750,1744867851754,-181.395052,0.00052296,120]
[358241751,1744867851764,-181.395052,0.00052296,120]
[358241752,1744867851773,-181.395052,0.00052296,120]
[358241753,1744867851783,-151.0,0.00052296,120]
[358241754,1744867851793,-151.0,0.00052296,120]
[358241755,1744867851802,-341.100679,0.00052296,120]
[358241756,1744867851812,-341.100679,0.00052296,120]
[358241757,1744867851822,-341.100679,0.00052296,120]
[358241758,1744867851831,-341.100679,0.00052296,120]
[358241759,1744867852022,-566.914999,0.00052296,120]
[358241760,1744867852032,-566.914999,0.00052296,120]
[358241761,1744867852042,-365.619952,0.00052296,120]
[358241762,1744867852052,-365.619952,0.00052296,120]
[358241763,1744867852062,-151.0,0.00052296,120]
[358241764,1744867852071,-566.914999,0.00052296,120]
[358241765,1744867852081,-151.0,0.00052296,120]
[358241766,1744867852091,-196.008481,0.00052296,120]
[358241767,1744867852100,-566.914999,0.00052296,120]
[358241768,1744867852110,-365.619952,0.00052296,120]
[358241769,1744867852119,-365.619952,0.00052296,120]
[358241770,1744867852129,-151.0,0.00052296,120]
[358241771,1744867852139,-151.0,0.00052296,120]
[358241772,1744867852149,-151.0,0.00052296,120]
[358241773,1744867852158,-151.0,0.00052296,120]
[358241774,1744867852167,-417.579424,0.00052296,120]
[358241775,1744867852177,-417.579424,0.00052296,120]
[358241776,1744867852187,-2044.0323438,0.00052297,2]
[358241777,1744867852196,-3893.0778774,0.00052297,2]
[358241778,1744867852206,-150.0,0.00052297,7]
[358241779,1744867852216,-11693.3909476,0.00052297,2]
[358241780,1744867852226,-159.0,0.000523,65]
[358241781,1744867852235,-151.0,0.00052301,120]
[358241782,1744867852245,-566.914999,0.00052301,120]
[358241783,1744867852255,-151.0,0.00052301,120]
[358241784,1744867852265,-566.914999,0.00052301,120]
[358241785,1744867852274,-417.579424,0.00052301,120]
[358241786,1744867852283,-2827.17359477,0.00052305,15]
[358241787,1744867852293,-151.0,0.00052306,120]
[358241788,1744867852303,-156.324176,0.00052306,120]
[358241789,1744867852312,-151.0,0.00052306,30]
[358241790,1744867852323,-151.0,0.00052306,120]
[358241791,1744867852333,-151.0,0.00052306,120]
[358241792,1744867852343,-1000.0,0.00052306,120]
[358241793,1744867852353,-1000.0,0.00052306,120]
[358241794,1744867852363,-1000.0,0.00052306,120]
[358241795,1744867852376,-1113.21086298,0.00052306,120]
[358241796,1744867852387,-232.11,0.00052306,120]
[358241797,1744867852397,-151.0,0.00052306,120]
[358241798,1744867852407,-151.0,0.00052306,90]
[358241799,1744867852418,-151.0,0.00052306,120]
[358241800,1744867852428,-151.0,0.00052306,120]
[358241801,1744867852439,-151.0,0.00052306,120]
[358241802,1744867852449,-172.387068,0.00052306,120]
[358241803,1744867852461,-461.011779,0.00052306,120]
[358241804,1744867852471,-461.011779,0.00052306,120]
[358241805,1744867852482,-151.0,0.00052306,120]
[358241806,1744867852495,-151.0,0.00052306,120]
[358241807,1744867852505,-151.0,0.00052306,120]
[358241808,1744867852515,-10000.0,0.00052306,120]
[358241809,1744867852525,-526.804113,0.00052306,120]
[358241810,1744867852535,-181.205305,0.00052306,120]
[358241811,1744867852548,-526.804113,0.00052306,120]
[358241812,1744867852558,-151.0,0.00052306,120]
[358241813,1744867852567,-151.0,0.00052306,120]
[358241814,1744867852578,-1968.938845,0.00052306,120]
[358241815,1744867852589,-1968.938845,0.00052306,120]
[358241816,1744867852599,-151.0,0.00052306,120]
[358241817,1744867852609,-151.0,0.00052306,120]
[358241818,1744867852619,-151.0,0.00052306,120]
[358241819,1744867852630,-151.0,0.00052306,120]
[358241820,1744867852640,-193.471755,0.00052306,120]
[358241821,1744867852649,-193.471755,0.00052306,120]
[358241822,1744867852660,-236.388087,0.00052306,120]
[358241823,1744867852669,-182.637609,0.00052306,120]
[358241824,1744867852679,-151.0,0.00052306,120]
[358241825,1744867852689,-236.388087,0.00052306,120]
[358241826,1744867852699,-151.0,0.00052306,120]
[358241827,1744867852709,-182.637609,0.00052306,120]
[358241828,1744867852719,-151.0,0.00052306,120]
[358241829,1744867852729,-1946.0,0.00052306,7]
[358241830,1744867852738,-151.0,0.00052307,120]
[358241831,1744867852748,-151.0,0.00052307,120]
[358241832,1744867852758,-151.0,0.00052307,120]
[358241833,1744867852767,-151.0,0.00052307,120]
[358241834,1744867852778,-151.0,0.00052307,120]
[358241835,1744867852788,-151.0,0.00052307,120]
[358241836,1744867852798,-151.0,0.00052307,120]
[358241837,1744867852808,-151.0,0.00052307,90]
[358241838,1744867852818,-151.0,0.00052307,120]
[358241839,1744867852832,-151.0,0.00052307,120]
[358241840,1744867852842,-151.0,0.00052307,120]
[358241841,1744867852851,-172.387068,0.00052307,120]
[358241842,1744867852861,-461.011779,0.00052307,120]
[358241843,1744867852871,-461.011779,0.00052307,120]
[358241844,1744867852881,-252.615455,0.00052307,120]
[358241845,1744867852890,-252.615455,0.00052307,120]
[358241846,1744867852899,-151.0,0.00052307,120]
[358241847,1744867852909,-151.0,0.00052307,120]
[358241848,1744867852919,-151.0,0.00052307,120]
[358241849,1744867852929,-526.804113,0.00052307,120]
[358241850,1744867852939,-526.804113,0.00052307,120]
[358241851,1744867852949,-151.0,0.00052307,120]
[358241852,1744867852959,-270.811904,0.00052307,120]
[358241853,1744867852968,-1968.938845,0.00052307,120]
[358241854,1744867852978,-1968.938845,0.00052307,120]
[358241855,1744867852988,-151.0,0.00052307,120]
[358241856,1744867852998,-151.0,0.00052307,120]
[358241857,1744867853008,-151.0,0.00052307,120]
[358241858,1744867853019,-193.471755,0.00052307,120]
[358241859,1744867853029,-193.471755,0.00052307,120]
[358241860,1744867853039,-182.637609,0.00052307,120]
[358241861,1744867853049,-182.637609,0.00052307,120]
[358241862,1744867853059,-151.0,0.00052307,120]
[358241863,1744867853069,-150.0,0.0005231,7]
[358241864,1744867853079,-151.0,0.00052316,120]
[358241865,1744867853088,-151.0,0.00052316,120]
[358241866,1744867853098,-151.419291,0.00052316,120]
[358241867,1744867853107,-158.562311,0.00052316,120]
[358241868,1744867853117,-151.0,0.00052316,120]
[358241869,1744867853127,-158.562311,0.00052316,120]
[358241870,1744867853137,-151.0,0.00052316,120]
[358241871,1744867853146,-162.424265,0.00052316,120]
[358241872,1744867853156,-151.0,0.00052316,120]
[358241873,1744867853166,-151.0,0.00052316,120]
[358241874,1744867853176,-151.0,0.00052316,120]
[358241875,1744867853186,-151.0,0.00052317,120]
[358241876,1744867853196,-151.0,0.00052317,120]
[358241877,1744867853205,-151.0,0.00052317,120]
[358241878,1744867853215,-156.209847,0.00052317,120]
[358241879,1744867853225,-151.0,0.00052317,120]
[358241880,1744867853235,-151.0,0.00052317,120]
[358241881,1744867853245,-151.0,0.00052317,120]
[358241882,1744867853255,-151.0,0.00052317,120]
[358241883,1744867853265,-151.0,0.00052317,120]
[358241884,1744867853275,-151.0,0.00052317,120]
[358241885,1744867853284,-151.0,0.00052317,120]
[358241886,1744867853294,-151.0,0.00052317,120]
[358241887,1744867853304,-151.0,0.00052317,120]
[358241888,1744867853314,-151.0,0.00052317,120]
[358241889,1744867853324,-3313.03291565,0.00052317,2]
[358241890,1744867853333,-158.562311,0.00052317,120]
[358241891,1744867853344,-151.0,0.00052317,120]
[358241892,1744867853354,-158.562311,0.00052317,120]
[358241893,1744867853364,-151.0,0.00052317,120]
[358241894,1744867853376,-151.0,0.00052317,120]
[358241895,1744867853386,-151.0,0.00052317,120]
[358241896,1744867853396,-151.0,0.00052317,120]
[358241897,1744867853406,-151.0,0.00052317,120]
[358241898,1744867853415,-151.0,0.00052317,120]
[358241899,1744867853425,-151.0,0.00052317,120]
[358241900,1744867853435,-151.0,0.00052317,120]
[358241901,1744867853446,-151.0,0.00052317,120]
[358241902,1744867853456,-291.326877,0.00052317,120]
[358241903,1744867853466,-252.615455,0.00052317,120]
[358241904,1744867853476,-252.615455,0.00052317,120]
[358241905,1744867853486,-151.0,0.00052318,120]
[358241906,1744867853494,-151.0,0.00052318,120]
[358241907,1744867853503,-151.0,0.00052318,120]
[358241908,1744867853512,-151.0,0.00052318,120]
[358241909,1744867853522,-151.0,0.00052318,120]
[358241910,1744867853532,-181.933691,0.00052318,120]
[358241911,1744867853545,-151.0,0.00052318,120]
[358241912,1744867853555,-166.386719,0.00052318,120]
[358241913,1744867853565,-151.0,0.00052318,120]
[358241914,1744867853575,-151.0,0.00052318,120]
[358241915,1744867853587,-159.026411,0.00052318,120]
[358241916,1744867853598,-151.0,0.00052318,120]
[358241917,1744867853607,-151.0,0.00052318,120]
[358241918,1744867853618,-151.0,0.00052318,120]
[358241919,1744867853628,-156.845465,0.00052318,120]
[358241920,1744867853637,-288.617632,0.00052318,120]
[358241921,1744867853646,-158.562311,0.00052318,120]
[358241922,1744867853656,-158.562311,0.00052318,120]
[358241923,1744867853666,-151.0,0.00052318,120]
[358241924,1744867853676,-151.0,0.00052318,120]
[358241925,1744867853686,-158.562311,0.00052318,120]
[358241926,1744867853696,-158.562311,0.00052318,120]
[358241927,1744867853705,-151.0,0.00052318,120]
[358241928,1744867853715,-178.612501,0.00052318,120]
[358241929,1744867853724,-151.0,0.00052318,120]
[358241930,1744867853734,-151.0,0.00052318,120]
[358241931,1744867853744,-151.0,0.00052318,120]
[358241932,1744867853754,-151.0,0.00052318,120]
[358241933,1744867853763,-151.0,0.00052318,120]
[358241934,1744867853773,-172.250037,0.00052318,120]
[358241935,1744867853783,-151.0,0.00052318,120]
[358241936,1744867853793,-151.0,0.00052318,120]
[358241937,1744867853803,-151.0,0.00052318,120]
[358241938,1744867853812,-151.0,0.00052318,120]
[358241939,1744867853822,-151.0,0.00052318,120]
[358241940,1744867853831,-151.0,0.00052318,120]
[358241941,1744867853840,-151.0,0.00052318,120]
[358241942,1744867853850,-151.0,0.00052318,120]
[358241943,1744867853859,-151.0,0.00052318,120]
[358241944,1744867853869,-151.0,0.00052318,90]
[358241945,1744867853879,-151.0,0.00052318,120]
[358241946,1744867853888,-151.0,0.00052318,120]
[358241947,1744867853898,-151.0,0.00052318,120]
[358241948,1744867853908,-172.387068,0.00052318,120]
[358241949,1744867853918,-461.011779,0.00052318,120]
[358241950,1744867853927,-461.011779,0.00052318,120]
[358241951,1744867853938,-252.615455,0.00052318,120]
[358241952,1744867853948,-252.615455,0.00052318,120]
[358241953,1744867853958,-252.615455,0.00052318,120]
[358241954,1744867853968,-151.0,0.00052318,120]
[358241955,1744867853978,-252.615455,0.00052318,120]
[358241956,1744867853988,-151.0,0.00052318,120]
[358241957,1744867853998,-151.0,0.00052318,120]
[358241958,1744867854008,-526.804113,0.00052318,120]
[358241959,1744867854018,-526.804113,0.00052318,120]
[358241960,1744867854027,-165.873286,0.00052318,120]
[358241961,1744867854037,-1968.938845,0.00052318,120]
[358241962,1744867854047,-1968.938845,0.00052318,120]
[358241963,1744867854057,-182.637609,0.00052318,120]
[358241964,1744867854066,-182.637609,0.00052318,120]
[358241965,1744867854077,-151.0,0.00052318,120]
[358241966,1744867854087,-151.0,0.00052318,120]
[358241967,1744867854097,-151.0,0.00052318,120]
[358241968,1744867854107,-181.395052,0.00052318,120]
[358241969,1744867854116,-181.395052,0.00052318,120]
[358241970,1744867854125,-341.100679,0.00052318,120]
[358241971,1744867854135,-341.100679,0.00052318,120]
[358241972,1744867854146,-365.619952,0.00052318,120]
[358241973,1744867854156,-365.619952,0.00052318,120]
[358241974,1744867854165,-151.0,0.00052318,120]
[358241975,1744867854176,-151.0,0.00052318,120]
[358241976,1744867854186,-151.0,0.00052318,120]
[358241977,1744867854196,-270.112763,0.00052318,120]
[358241978,1744867854206,-151.0,0.00052318,120]
[358241979,1744867854216,-151.0,0.00052318,120]
[358241980,1744867854227,-5414.58465744,0.00052319,15]
[358241981,1744867854237,-1000.0,0.0005232,30]
[358241982,1744867854247,-151.0,0.00052323,120]
[358241983,1744867854257,-151.0,0.00052323,120]
[358241984,1744867854267,-151.0,0.00052323,120]
[358241985,1744867854277,-151.0,0.00052323,120]
[358241986,1744867854603,-151.0,0.00052323,120]
[358241987,1744867854629,-193.471755,0.00052323,120]
[358241988,1744867854640,-193.471755,0.00052323,120]
[358241989,1744867854650,-2608.1874032,0.00052323,2]
[358241990,1744867854660,-236.388087,0.00052323,120]
[358241991,1744867854670,-151.0,0.00052323,120]
[358241992,1744867854679,-236.388087,0.00052323,120]
[358241993,1744867854690,-151.0,0.00052323,120]
[358241994,1744867854700,-566.914999,0.00052323,120]
[358241995,1744867854709,-151.0,0.00052323,120]
[358241996,1744867854719,-566.914999,0.00052323,120]
[358241997,1744867854728,-417.579424,0.00052323,120]